bitfinex-derivatives/quotes_SOLF0:USTF0_20241024
["timestamp","ask_amount","ask_price","bid_price","bid_amount"]
[1729757182408,2.8803,173.76,173.7,8.1533]
[1729757182610,2.8803,173.76,173.71,8.52291662]
[1729757182815,2.8803,173.76,173.71,7.08245065]
[1729757183005,2.8803,173.76,173.72,4.321165]
[1729757183206,2.8804,173.75,173.73,1.440465]
[1729757183508,2.8804,173.75,173.74,1.440465]
[1729757186584,2.8804,173.75,173.72,2.8807]
[1729757186715,2.8804,173.75,173.73,1.44047649]
[1729757186910,2.8804,173.75,173.72,2.8807]
[1729757186911,2.8804,173.75,173.74,1.44047649]
[1729757187601,9.96285065,173.75,173.74,1.44047649]
[1729757188100,9.96285065,173.75,173.68,7.08245065]
[1729757188101,2.8808,173.73,173.68,7.08245065]
[1729757188315,9.96325065,173.73,173.7,2.8811]
[1729757188515,9.96325065,173.73,173.71,1.440576]
[1729757188818,9.96325065,173.73,173.72,1.440576]
[1729757190394,2.8806,173.74,173.72,1.440576]
[1729757190594,2.8806,173.74,173.73,1.440576]
[1729757190991,2.8802,173.76,173.73,8.52302665]
[1729757191291,2.8802,173.76,173.74,1.440576]
[1729757191592,2.8802,173.76,173.73,7.08245065]
[1729757191794,2.8802,173.76,173.74,1.44051262]
[1729757191992,2.8802,173.76,173.73,7.08245065]
[1729757192300,2.8802,173.76,173.74,1.44050168]
[1729757192597,2.8802,173.76,173.75,1.44050168]
[1729757196409,2.8802,173.76,173.73,2.8806]
[1729757196611,2.8802,173.76,173.74,1.44051434]
[1729757196910,2.8802,173.76,173.73,2.8806]
[1729757197110,2.8802,173.76,173.74,1.44051434]
[1729757197310,2.8802,173.76,173.73,2.8806]
[1729757197607,2.8802,173.76,173.74,1.44051434]
[1729757197792,1.8484,173.79,173.64,3.6325]
[1729757198007,1.8484,173.79,173.68,1.44051434]
[1729757198008,7.08245065,173.73,173.68,1.44051434]
[1729757198296,7.08245065,173.73,173.69,1.44051434]
[1729757198592,2.8809,173.72,173.7,1.44051434]
[1729757198797,2.8809,173.72,173.71,1.44051434]
[1729757200203,2.8813,173.7,173.64,15.33495065]
[1729757200408,7.08245065,173.71,173.66,7.08245065]
[1729757200602,7.08245065,173.72,173.67,1.44080375]
[1729757200805,7.08245065,173.72,173.66,7.08245065]
[1729757201009,7.08245065,173.72,173.67,1.44075895]
[1729757201304,2.8811,173.71,173.68,4.32225895]
[1729757201498,2.8811,173.71,173.69,1.44075895]
[1729757201700,2.8811,173.71,173.7,1.44075895]
[1729757201903,9.96355065,173.71,173.7,1.44075895]
[1729757202704,2.8815,173.69,173.64,1.8291]
[1729757202904,7.08245065,173.67,173.65,1.44097393]
[1729757203207,9.96425065,173.67,173.66,1.44097393]
[1729757204212,9.96425065,173.67,173.61,7.08245065]
[1729757204413,9.96425065,173.67,173.63,2.8823]
[1729757204707,7.08245065,173.67,173.64,1.44114602]
[1729757205008,2.8819,173.66,173.65,1.44114602]
[1729757207306,9.96435065,173.66,173.65,1.44114602]
[1729757210305,7.08245065,173.66,173.6,12.80238065]
[1729757210502,7.08245065,173.66,173.61,1.44114375]
[1729757210808,7.08245065,173.66,173.62,1.44114375]
[1729757211002,7.08245065,173.66,173.64,2.8822]
[1729757212407,7.08245065,173.66,173.63,2.8823]
[1729757212611,7.08245065,173.66,173.64,1.44114496]
[1729757212612,9.96435065,173.66,173.64,1.44114496]
[1729757212807,9.96435065,173.66,173.63,2.8823]
[1729757213008,9.96435065,173.66,173.64,1.44115456]
[1729757213314,9.96435065,173.66,173.63,2.8823]
[1729757214219,2.8825,173.63,173.6,2.8828]
[1729757214409,7.08245065,173.64,173.61,1.44128426]
[1729757214717,7.08245065,173.64,173.58,13.39115065]
[1729757214920,7.08245065,173.64,173.62,2.8825]
[1729757215819,7.08245065,173.64,173.63,2.8824]
[1729757216117,7.08245065,173.65,173.6,1.44129561]
[1729757216319,7.08245065,173.65,173.61,1.44129561]
[1729757216516,7.08245065,173.65,173.63,2.8823]
[1729757217226,7.08245065,173.65,173.64,2.8822]
[1729757217822,7.08245065,173.65,173.63,2.8823]
[1729757220723,2.8817,173.68,173.64,2.882]
[1729757220925,4.62,173.68,173.64,2.882]
[1729757221126,7.08245065,173.69,173.63,7.08245065]
[1729757221522,7.08245065,173.69,173.61,1.15257]
[1729757221523,1.8318,173.73,173.69,2.8813]
[1729757221720,1.8318,173.73,173.62,4.62]
[1729757221721,6.4518,173.73,173.68,7.08245065]
[1729757222122,7.08245065,173.72,173.66,7.08245065]
[1729757223436,2.8811,173.71,173.68,2.8814]
[1729757226739,2.8811,173.71,173.66,7.08245065]
[1729757226941,7.08245065,173.69,173.64,1.44090514]
[1729757227240,7.08245065,173.69,173.63,8.52335579]
[1729757227837,2.8817,173.68,173.65,2.882]
[1729757228033,7.08245065,173.67,173.62,3.12150514]
[1729757229035,7.08245065,173.67,173.62,1.6806]
[1729757229241,9.96415065,173.67,173.64,2.8821]
[1729757229838,2.8817,173.67,173.64,2.8821]
[1729757231638,7.08245065,173.69,173.66,2.8818]
[1729757231843,7.08245065,173.69,173.63,7.08245065]
[1729757232442,2.8816,173.68,173.65,2.882]
[1729757232645,7.08245065,173.71,173.66,7.08245065]
[1729757232841,2.8813,173.7,173.67,2.8816]
[1729757234342,7.08245065,173.69,173.63,8.52335579]
[1729757234643,7.08245065,173.66,173.64,2.8821]
[1729757235542,9.96425065,173.67,173.64,2.8821]
[1729757237444,2.8818,173.67,173.64,2.8821]
[1729757239041,7.08245065,173.68,173.62,7.08245065]
[1729757239242,2.8818,173.67,173.62,8.52358858]
[1729757239441,2.8818,173.67,173.62,7.08245065]
[1729757239838,2.8818,173.67,173.64,2.8821]
[1729757241936,2.8818,173.67,173.64,4.32318076]
[1729757242144,2.8818,173.67,173.64,2.8821]
[1729757243346,2.8818,173.67,173.65,1.44107159]
[1729757243552,2.8818,173.67,173.64,2.8821]
[1729757243755,2.8818,173.67,173.65,1.44106883]
[1729757243948,2.8818,173.67,173.64,2.8821]
[1729757244144,7.08245065,173.69,173.65,1.44106864]
[1729757244356,2.8816,173.68,173.64,2.8821]
[1729757244649,2.8816,173.68,173.65,1.44107051]
[1729757244846,4.62,173.75,173.73,2.8807]
[1729757245053,4.62,173.75,173.7,7.08245065]
[1729757245449,7.5005,173.75,173.71,2.8809]
[1729757245859,4.62,173.75,173.71,2.8809]
[1729757247253,2.8806,173.74,173.71,2.8809]
[1729757249147,4.62,173.75,173.73,2.8807]
[1729757249345,7.08245065,173.79,173.73,7.08245065]
[1729757249549,11.68245065,173.79,173.73,7.08245065]
[1729757249850,2.8802,173.77,173.74,2.8805]
[1729757250454,2.8802,173.77,173.73,7.08245065]
[1729757250455,7.08245065,173.79,173.73,7.08245065]
[1729757250648,2.8799,173.78,173.75,2.8803]
[1729757252355,9.96235065,173.78,173.75,2.8803]
[1729757258261,4.6,173.79,173.69,4.6]
[1729757258262,7.08245065,173.76,173.69,4.6]
[1729757258464,7.08245065,173.73,173.7,1.44053002]
[1729757258761,7.08245065,173.73,173.68,4.6]
[1729757258762,7.08245065,173.73,173.71,1.44053002]
[1729757258963,2.8808,173.73,173.7,2.8811]
[1729757259258,7.08245065,173.74,173.71,1.44064562]
[1729757259459,7.08245065,173.74,173.69,7.08245065]
[1729757259661,7.08245065,173.74,173.71,2.881]
[1729757262368,14.56295065,173.75,173.72,2.8809]
[1729757262553,14.56295065,173.75,173.7,7.08245065]
[1729757262869,14.56295065,173.75,173.71,1.44066974]
[1729757263168,14.56295065,173.75,173.71,2.881]
[1729757267357,7.4805,173.75,173.72,1.44066365]
[1729757267566,7.4805,173.75,173.71,2.881]
[1729757267766,7.4805,173.75,173.72,1.44064524]
[1729757267969,7.4805,173.75,173.71,2.881]
[1729757268165,4.6,173.75,173.73,2.8807]
[1729757268360,4.6,173.75,173.7,7.08245065]
[1729757268565,4.6,173.75,173.71,1.44063062]
[1729757268863,4.6,173.75,173.72,4.32143062]
[1729757268864,2.8805,173.75,173.72,4.32143062]
[1729757269061,2.8805,173.75,173.72,2.8808]
[1729757269969,1.7971,173.81,173.74,7.08245065]
[1729757270270,7.08245065,173.79,173.73,7.08245065]
[1729757270473,7.08245065,173.79,173.74,1.44046608]
[1729757270670,2.8801,173.77,173.74,2.8804]
[1729757271372,2.8803,173.76,173.73,2.8806]
[1729757271571,2.8803,173.76,173.74,1.4404777]
[1729757271771,2.8803,173.76,173.73,2.8806]
[1729757271965,2.8803,173.76,173.74,1.4404777]
[1729757272270,2.8803,173.76,173.73,2.8806]
[1729757273266,7.08245065,173.77,173.71,7.08245065]
[1729757273473,7.08245065,173.77,173.72,1.44049084]
[1729757273765,7.08245065,173.77,173.71,7.08245065]
[1729757274171,2.8804,173.75,173.72,2.8807]
[1729757274676,7.08245065,173.77,173.71,7.08245065]
[1729757274978,2.8803,173.76,173.73,2.8807]
[1729757276264,2.8806,173.74,173.71,2.881]
[1729757276463,7.08245065,173.76,173.7,7.08245065]
[1729757276672,7.08245065,173.76,173.68,7.08245065]
[1729757276673,7.08245065,173.73,173.68,7.08245065]
[1729757276875,7.08245065,173.73,173.69,1.44078812]
[1729757277075,7.08245065,173.73,173.7,1.44078812]
[1729757277379,7.08245065,173.73,173.68,7.08245065]
[1729757277574,7.08245065,173.73,173.69,1.44079146]
[1729757277778,7.08245065,173.73,173.68,7.08245065]
[1729757277977,7.08245065,173.73,173.69,1.44079707]
[1729757278276,7.08245065,173.73,173.68,7.08245065]
[1729757278277,9.96335065,173.73,173.7,4.32199707]
[1729757278477,9.96335065,173.73,173.7,2.8812]
[1729757279282,4.6,173.76,173.66,1.0998]
[1729757279283,7.08245065,173.72,173.66,1.0998]
[1729757279481,7.08245065,173.72,173.65,3.4437]
[1729757279482,2.8815,173.68,173.67,1.44093929]
[1729757279874,2.8815,173.68,173.65,2.882]
[1729757280069,2.8815,173.68,173.67,1.44105517]
[1729757280683,9.96385065,173.69,173.67,1.44105517]
[1729757280879,9.96385065,173.69,173.65,2.882]
[1729757281179,9.96385065,173.69,173.66,2.8818]
[1729757281976,9.96365065,173.71,173.65,7.08245065]
[1729757282285,7.08245065,173.71,173.66,1.44109051]
[1729757282481,2.8808,173.73,173.69,2.8813]
[1729757283483,4.6,173.74,173.69,2.8813]
[1729757283484,2.8809,173.72,173.69,2.8813]
[1729757285883,4.6,173.74,173.7,7.08245065]
[1729757286083,4.6,173.74,173.64,3.4587]
[1729757286084,11.68245065,173.77,173.71,7.08245065]
[1729757286490,2.8804,173.75,173.72,2.8808]
[1729757287190,11.68245065,173.77,173.69,2.8812]
[1729757287191,2.881,173.72,173.69,2.8812]
[1729757287384,2.881,173.72,173.7,1.44079563]
[1729757287687,9.96325065,173.73,173.69,2.8813]
[1729757287984,9.96325065,173.73,173.7,1.44080638]
[1729757288290,9.96325065,173.73,173.69,2.8813]
[1729757288483,9.96325065,173.73,173.7,1.44080932]
[1729757288689,9.96325065,173.73,173.69,2.8813]
[1729757288884,7.08245065,173.73,173.7,1.44080311]
[1729757289188,2.8809,173.72,173.69,2.8813]
[1729757289385,2.8809,173.72,173.7,1.44080164]
[1729757289586,2.8809,173.72,173.69,2.8813]
[1729757289787,2.8809,173.72,173.7,1.44080809]
[1729757289986,2.8809,173.72,173.69,2.8813]
[1729757290386,2.8809,173.72,173.7,1.44080833]
[1729757290583,2.8809,173.72,173.69,2.8813]
[1729757290788,2.8809,173.72,173.7,1.44080833]
[1729757290983,2.8809,173.72,173.69,2.8813]
[1729757291185,2.8809,173.72,173.7,1.44080833]
[1729757291380,9.96325065,173.73,173.71,1.44080833]
[1729757291686,9.96325065,173.73,173.69,2.8813]
[1729757291883,9.96325065,173.73,173.7,1.44079756]
[1729757292088,9.96325065,173.73,173.71,1.44079756]
[1729757292285,9.96325065,173.73,173.69,2.8813]
[1729757292590,2.881,173.72,173.7,1.44079609]
[1729757292784,2.881,173.72,173.71,1.44079609]
[1729757294785,2.881,173.72,173.69,2.8813]
[1729757295095,7.08245065,173.74,173.7,1.44085037]
[1729757295399,3.4732,173.79,173.73,7.08245065]
[1729757295588,6.3038,173.79,173.73,7.08245065]
[1729757296188,2.8802,173.77,173.74,2.8805]
[1729757296392,1.7038,173.79,173.75,7.08245065]
[1729757296889,2.8801,173.77,173.75,7.08245065]
[1729757297094,2.8801,173.77,173.74,2.8805]
[1729757299689,1.7038,173.79,173.73,7.08245065]
[1729757299890,1.7038,173.79,173.67,1.6969]
[1729757299891,1.7038,173.79,173.69,1.0999]
[1729757300082,7.08245065,173.75,173.7,1.44067595]
[1729757300288,7.08245065,173.75,173.71,1.44067595]
[1729757300487,2.8807,173.74,173.72,1.44067595]
[1729757300689,7.08245065,173.75,173.7,2.8811]
[1729757300888,7.08245065,173.75,173.71,1.44077428]
[1729757301088,7.08245065,173.75,173.68,11.68245065]
[1729757301089,2.8809,173.72,173.68,11.68245065]
[1729757301294,2.8809,173.72,173.69,1.44086863]
[1729757301484,7.08245065,173.75,173.7,1.44086863]
[1729757301688,7.08245065,173.75,173.71,1.44086863]
[1729757301891,2.8808,173.73,173.7,2.8812]
[1729757302092,7.08245065,173.74,173.68,11.68245065]
[1729757302292,7.08245065,173.74,173.69,1.44086031]
[1729757302492,7.08245065,173.74,173.7,1.44086031]
[1729757302695,7.08245065,173.75,173.71,1.44086031]
[1729757302890,7.08245065,173.75,173.68,11.68245065]
[1729757303086,7.08245065,173.75,173.69,1.4408483]
[1729757303288,7.08245065,173.75,173.68,11.68245065]
[1729757303289,2.8809,173.73,173.7,4.3220483]
[1729757303493,2.8809,173.73,173.71,1.4408483]
[1729757303688,2.8809,173.73,173.7,2.8812]
[1729757303884,2.8809,173.73,173.71,1.44086073]
[1729757304090,7.08245065,173.75,173.68,11.68245065]
[1729757304289,2.8807,173.73,173.7,2.8812]
[1729757304590,2.8807,173.73,173.71,1.44086073]
[1729757304789,2.8807,173.73,173.7,2.8812]
[1729757304986,2.8807,173.73,173.71,1.44085827]
[1729757305187,2.8807,173.73,173.7,2.8812]
[1729757305388,2.8807,173.73,173.71,1.44086262]
[1729757305592,2.8807,173.73,173.7,2.8812]
[1729757305793,2.8807,173.73,173.71,1.44084896]
[1729757305996,2.8806,173.74,173.72,1.44084896]
[1729757306191,2.8806,173.74,173.71,2.881]
[1729757306398,2.8806,173.74,173.72,1.4408167]
[1729757306593,2.8806,173.74,173.71,2.881]
[1729757306786,2.8806,173.74,173.72,1.4408167]
[1729757306991,2.8807,173.73,173.71,2.881]
[1729757307188,2.8807,173.73,173.72,1.4408167]
[1729757308200,2.8807,173.73,173.7,9.96355065]
[1729757308405,2.8807,173.73,173.72,1.44082315]
[1729757311894,7.08245065,173.75,173.72,1.44082315]
[1729757312097,4.6,173.76,173.73,1.44082315]
[1729757312304,4.6,173.76,173.74,1.44082315]
[1729757312502,4.6,173.76,173.71,7.08245065]
[1729757312801,1.7038,173.79,173.75,7.08245065]
[1729757313303,2.88,173.78,173.76,1.44060847]
[1729757313509,2.88,173.78,173.75,9.96275065]
[1729757313699,2.88,173.78,173.76,1.44060819]
[1729757314007,2.8801,173.77,173.75,9.96275065]
[1729757314203,2.8801,173.77,173.76,1.44057874]
[1729757315006,2.8796,173.8,173.76,1.44057874]
[1729757315208,13.50005065,173.81,173.75,9.96275065]
[1729757315597,2.88,173.78,173.76,1.44056317]
[1729757315799,2.88,173.78,173.75,9.96275065]
[1729757316001,2.88,173.78,173.76,1.44056821]
[1729757316202,2.88,173.78,173.75,9.96275065]
[1729757316394,2.88,173.78,173.76,1.44056821]
[1729757316599,2.88,173.78,173.75,9.96275065]
[1729757316905,2.88,173.78,173.76,1.44057466]
[1729757317104,2.88,173.78,173.75,9.96275065]
[1729757317304,2.88,173.78,173.76,1.44057319]
[1729757317599,2.88,173.78,173.75,9.96275065]
[1729757317805,2.88,173.78,173.76,1.44056674]
[1729757318001,7.08245065,173.8,173.75,2.8803]
[1729757318208,9.96255065,173.77,173.76,1.44056739]
[1729757318408,7.08245065,173.77,173.7,8.90145065]
[1729757318606,7.08245065,173.77,173.71,1.44075887]
[1729757318808,7.08245065,173.77,173.72,1.44075887]
[1729757319008,7.08245065,173.77,173.7,8.90145065]
[1729757319209,7.08245065,173.77,173.71,1.44076015]
[1729757319407,7.08245065,173.77,173.72,1.44076015]
[1729757319611,7.08245065,173.77,173.73,1.44076015]
[1729757319809,7.08245065,173.77,173.7,8.90145065]
[1729757320010,2.8806,173.74,173.71,4.32180968]
[1729757320314,2.8806,173.74,173.72,1.44080968]
[1729757320609,2.8806,173.74,173.73,1.44080968]
[1729757320911,9.96305065,173.74,173.73,1.44080968]
[1729757322510,9.96305065,173.74,173.71,2.881]
[1729757322705,9.96305065,173.74,173.73,1.4408131]
[1729757324711,2.8806,173.74,173.73,1.4408131]
[1729757325514,4.58,173.77,173.73,1.4408131]
[1729757325815,7.08245065,173.8,173.75,9.96275065]
[1729757326007,7.08245065,173.8,173.76,1.4408131]
[1729757326206,7.08245065,173.8,173.75,9.96275065]
[1729757326207,2.88,173.78,173.75,9.96275065]
[1729757326412,7.08245065,173.8,173.76,1.44055539]
[1729757326710,7.08245065,173.8,173.77,1.44055288]
[1729757326915,2.8799,173.78,173.75,7.08245065]
[1729757327112,2.8799,173.78,173.76,1.44054847]
[1729757327313,2.8799,173.78,173.77,1.44054847]
[1729757329221,2.8799,173.78,173.75,7.08245065]
[1729757329415,2.8799,173.78,173.76,1.44055231]
[1729757329616,2.8799,173.78,173.77,1.44055231]
[1729757329823,2.8799,173.78,173.75,7.08245065]
[1729757330129,2.8799,173.78,173.76,1.44054643]
[1729757330319,2.8799,173.78,173.77,1.44054643]
[1729757331016,7.08245065,173.8,173.75,7.08245065]
[1729757331321,2.8801,173.77,173.76,1.44054847]
[1729757333526,2.8801,173.77,173.75,7.08245065]
[1729757333719,2.8801,173.77,173.76,1.44054847]
[1729757343634,7.08245065,173.79,173.76,1.44054847]
[1729757343928,7.08245065,173.79,173.75,2.8804]
[1729757343929,2.88,173.78,173.75,2.8804]
[1729757344135,2.88,173.78,173.76,1.44054349]
[1729757344333,2.88,173.78,173.75,2.8804]
[1729757344630,2.88,173.78,173.76,1.44054349]
[1729757344936,2.88,173.78,173.75,2.8804]
[1729757345136,2.88,173.78,173.76,1.44054875]
[1729757345334,2.88,173.78,173.75,2.8804]
[1729757345636,2.88,173.78,173.76,1.44054875]
[1729757345826,2.88,173.78,173.75,2.8804]
[1729757346031,2.88,173.78,173.76,1.44054202]
[1729757346230,2.88,173.78,173.75,2.8804]
[1729757346433,2.88,173.78,173.76,1.44054202]
[1729757346736,2.88,173.78,173.75,2.8804]
[1729757347044,2.88,173.78,173.76,1.44054847]
[1729757347336,2.88,173.78,173.75,2.8804]
[1729757347538,2.88,173.78,173.76,1.44054202]
[1729757347739,2.88,173.78,173.75,2.8804]
[1729757347935,7.08245065,173.79,173.76,1.44054202]
[1729757348139,2.8799,173.78,173.75,2.8804]
[1729757348341,2.8799,173.78,173.76,1.44054202]
[1729757348636,2.8799,173.78,173.75,9.96285065]
[1729757348831,2.8799,173.78,173.76,1.44054137]
[1729757349034,2.8799,173.78,173.75,9.96285065]
[1729757349335,2.8799,173.78,173.76,1.44054782]
[1729757349536,2.8799,173.78,173.75,9.96285065]
[1729757349735,2.8802,173.77,173.76,1.44054701]
[1729757349931,2.8802,173.77,173.68,4.58]
[1729757349932,7.08245065,173.77,173.68,4.58]
[1729757350432,2.8804,173.75,173.71,2.8809]
[1729757350635,2.8804,173.75,173.7,7.08245065]
[1729757352238,2.8804,173.75,173.72,2.8809]
[1729757353939,2.8798,173.79,173.75,2.8803]
[1729757354241,4.58,173.8,173.76,7.08245065]
[1729757354931,11.66245065,173.8,173.75,9.96275065]
[1729757355130,2.88,173.78,173.75,9.96275065]
[1729757355338,11.66245065,173.8,173.76,2.8801]
[1729757355534,11.66245065,173.8,173.75,7.08245065]
[1729757356335,2.8799,173.78,173.75,9.96275065]
[1729757362139,2.8799,173.78,173.76,1.44055387]
[1729757362340,2.8799,173.78,173.75,9.96275065]
[1729757362543,2.8799,173.78,173.76,1.44056032]
[1729757362738,2.8799,173.78,173.75,9.96275065]
[1729757362938,2.8799,173.78,173.76,1.44056032]
[1729757363139,2.8799,173.78,173.75,9.96275065]
[1729757363342,2.8799,173.78,173.76,1.44056032]
[1729757363641,2.8799,173.78,173.75,9.96275065]
[1729757363835,2.8799,173.78,173.76,1.44056032]
[1729757364039,2.8799,173.78,173.75,2.8803]
[1729757364239,2.8799,173.78,173.76,1.44055557]
[1729757364440,2.8799,173.78,173.75,2.8803]
[1729757364835,2.8799,173.78,173.76,1.44055387]
[1729757365036,2.8799,173.78,173.75,2.8803]
[1729757365237,2.8799,173.78,173.76,1.44055534]
[1729757365432,2.8799,173.78,173.75,2.8803]
[1729757365639,2.8799,173.78,173.76,1.44056179]
[1729757365842,2.8799,173.78,173.75,2.8803]
[1729757366042,2.8799,173.78,173.76,1.44056032]
[1729757366239,2.8799,173.78,173.75,2.8803]
[1729757366440,2.8799,173.78,173.76,1.44056032]
[1729757366744,2.8799,173.78,173.75,2.8803]
[1729757366946,2.8799,173.78,173.76,1.4405537]
[1729757367149,2.8799,173.78,173.75,2.8803]
[1729757367350,2.8799,173.78,173.76,1.4405537]
[1729757367545,2.8799,173.78,173.75,2.8803]
[1729757367749,2.8799,173.78,173.76,1.44056015]
[1729757367936,2.8799,173.78,173.75,2.8803]
[1729757368242,2.8799,173.78,173.76,1.44056015]
[1729757368441,2.8799,173.78,173.75,2.8803]
[1729757368641,2.8799,173.78,173.76,1.44056106]
[1729757368842,2.8799,173.78,173.77,1.44056106]
[1729757369948,2.8799,173.78,173.75,2.8803]
[1729757370146,2.8799,173.78,173.76,1.44054938]
[1729757370347,2.8799,173.78,173.77,1.44054938]
[1729757373952,2.8791,173.83,173.77,8.52300003]
[1729757374142,2.8791,173.83,173.8,7.08245065]
[1729757374451,2.8791,173.83,173.81,1.44054938]
[1729757374652,2.8791,173.83,173.8,7.08245065]
[1729757374847,2.8791,173.83,173.81,1.44025464]
[1729757375043,2.8791,173.83,173.82,1.44021619]
[1729757375242,2.8791,173.83,173.8,7.08245065]
[1729757375444,2.8791,173.83,173.81,1.4401988]
[1729757375646,2.8791,173.83,173.8,7.08245065]
[1729757375847,2.8791,173.83,173.81,1.44018232]
[1729757376052,2.8791,173.83,173.82,1.44018232]
[1729757376249,2.8791,173.83,173.8,9.96195065]
[1729757376451,2.8791,173.83,173.81,1.44019088]
[1729757376652,2.8791,173.83,173.8,9.96195065]
[1729757376848,2.8791,173.83,173.81,1.44019088]
[1729757377053,2.8791,173.83,173.8,9.96195065]
[1729757377251,2.8791,173.83,173.81,1.44020411]
[1729757377452,2.8791,173.83,173.8,9.96195065]
[1729757377655,2.8791,173.83,173.81,1.44020118]
[1729757377849,2.8791,173.83,173.8,9.96195065]
[1729757378052,2.8791,173.83,173.81,1.44020117]
[1729757378353,2.8791,173.83,173.8,2.8795]
[1729757378659,2.8791,173.83,173.81,1.44020459]
[1729757378858,2.8791,173.83,173.8,2.8795]
[1729757379350,2.8791,173.83,173.81,1.44020264]
[1729757379556,2.8791,173.83,173.8,2.8795]
[1729757379756,2.8791,173.83,173.81,1.44020264]
[1729757380058,2.8791,173.83,173.8,2.8795]
[1729757380247,4.56,173.85,173.81,1.44020264]
[1729757380446,2.8787,173.86,173.84,7.08245065]
[1729757381054,4.56,173.88,173.84,7.08245065]
[1729757381248,11.64245065,173.88,173.84,7.08245065]
[1729757382362,2.8784,173.87,173.84,7.08245065]
[1729757382561,4.56,173.9,173.85,7.08245065]
[1729757382762,2.8783,173.88,173.85,7.08245065]
[1729757384460,2.8783,173.88,173.85,9.96115065]
[1729757385249,4.56,173.9,173.85,9.96115065]
[1729757385250,2.8782,173.89,173.85,9.96115065]
[1729757385451,4.56,173.9,173.85,9.96115065]
[1729757386272,2.8782,173.88,173.85,9.96115065]
[1729757389660,7.08245065,173.87,173.82,2.8791]
[1729757389965,7.08245065,173.87,173.81,7.08245065]
[1729757390165,2.8789,173.85,173.81,9.96165065]
[1729757390662,2.8789,173.85,173.81,2.8792]
[1729757390865,2.8789,173.85,173.81,9.96165065]
[1729757392569,2.8789,173.85,173.82,2.8792]
[1729757398569,7.08245065,173.85,173.78,3.5347]
[1729757398773,7.08245065,173.85,173.79,8.52257115]
[1729757398974,7.08245065,173.85,173.79,7.08245065]
[1729757399175,2.879,173.84,173.79,9.96215065]
[1729757399473,7.08245065,173.85,173.79,7.08245065]
[1729757401374,1.8321,173.89,173.81,7.08245065]
[1729757401575,6.4104,173.91,173.86,7.08245065]
[1729757401766,13.49285065,173.91,173.86,7.08245065]
[1729757401963,2.8783,173.88,173.86,7.08245065]
[1729757417683,2.8783,173.88,173.85,2.8786]
[1729757417979,2.8783,173.88,173.85,9.96105065]
[1729757418373,2.8783,173.88,173.85,2.8786]
[1729757418579,2.8783,173.88,173.85,9.96105065]
[1729757420487,1.8504,173.91,173.85,7.08245065]
[1729757420684,1.8504,173.91,173.83,1.15104]
[1729757420685,4.56,173.91,173.88,7.08245065]
[1729757421187,4.56,173.91,173.88,9.96055065]
[1729757421781,7.08245065,173.93,173.88,7.08245065]
[1729757421977,2.8777,173.92,173.89,2.8779]
[1729757422391,2.8777,173.92,173.89,9.96035065]
[1729757423583,2.8772,173.95,173.91,9.96005065]
[1729757423891,4.56,173.95,173.91,9.96005065]
[1729757424389,8.83405065,173.97,173.91,9.96005065]
[1729757424584,8.83405065,173.97,173.92,7.08245065]
[1729757424585,6.3116,173.97,173.92,7.08245065]
[1729757425384,6.3116,173.97,173.93,2.8773]
[1729757425385,2.877,173.96,173.93,2.8773]
[1729757425588,2.877,173.96,173.92,7.08245065]
[1729757426290,7.4369,173.97,173.93,2.8773]
[1729757426889,7.08245065,173.96,173.89,1.15104]
[1729757427087,4.56,173.97,173.86,4.56]
[1729757427088,7.08245065,173.92,173.86,4.56]
[1729757427294,7.08245065,173.92,173.87,7.08245065]
[1729757427495,2.8774,173.94,173.87,7.08245065]
[1729757427792,7.08245065,173.92,173.88,2.8782]
[1729757429089,2.8778,173.91,173.88,2.8782]
[1729757430888,2.8778,173.91,173.88,9.96065065]
[1729757431081,2.8776,173.92,173.89,2.878]
[1729757431689,2.8776,173.92,173.89,9.96045065]
[1729757431888,7.08245065,173.96,173.91,7.08245065]
[1729757432084,4.56,173.97,173.91,7.08245065]
[1729757432284,5.1756,174.01,173.93,7.08245065]
[1729757432493,2.8767,173.98,173.95,7.08245065]
[1729757433089,2.8767,173.98,173.95,9.95945065]
[1729757433291,2.8769,173.96,173.93,7.08245065]
[1729757434086,4.54,174.0,173.93,7.08245065]
[1729757434087,7.08245065,173.97,173.93,7.08245065]